bitfinex/quotes_BTCUSD_20251011
["timestamp","ask_amount","ask_price","bid_price","bid_amount"]
[1760183494276,0.5,112400.0,112380.0,0.23696763]
[1760183494492,0.5,112400.0,112390.0,0.18937177]
[1760183494696,0.5,112400.0,112390.0,0.22915177]
[1760183494898,0.5,112400.0,112390.0,0.23030731]
[1760183495240,0.5,112400.0,112390.0,0.13030731]
[1760183495646,0.5,112400.0,112390.0,0.13617241]
[1760183496102,0.5,112400.0,112390.0,0.2361669]
[1760183496258,0.5,112400.0,112390.0,0.2303018]
[1760183497108,0.67793594,112400.0,112390.0,0.15235003]
[1760183497319,0.67793594,112400.0,112390.0,0.3303018]
[1760183497751,0.67807023,112400.0,112390.0,0.3303018]
[1760183498625,0.67807023,112400.0,112390.0,0.3313018]
[1760183508720,0.50013429,112400.0,112390.0,0.3313018]
[1760183509482,0.67807023,112400.0,112390.0,0.3313018]
[1760183510433,0.67807023,112400.0,112390.0,0.15335003]
[1760183510637,0.67807023,112400.0,112390.0,0.05335554]
[1760183511501,0.67807023,112400.0,112390.0,0.05235554]
[1760183511916,0.67807023,112400.0,112390.0,0.05335554]
[1760183513005,0.70822213,112400.0,112390.0,0.05335554]
[1760183513426,0.73498663,112400.0,112390.0,0.05335554]
[1760183516598,0.70483473,112400.0,112390.0,0.23130731]
[1760183516801,0.50013429,112400.0,112390.0,0.23130731]
[1760183517631,0.50013429,112400.0,112390.0,0.3313018]
[1760183518044,0.50013429,112400.0,112390.0,0.3303018]
[1760183518448,0.50013429,112400.0,112390.0,0.3313018]
[1760183519892,0.67807023,112400.0,112390.0,0.3313018]
[1760183521252,0.50013429,112400.0,112390.0,0.3313018]
[1760183531864,0.50013429,112400.0,112390.0,0.7313018]
[1760183532680,0.50013429,112400.0,112390.0,0.73089047]
[1760183533625,0.31802574,112400.0,112390.0,0.73089047]
[1760183534914,0.31802574,112400.0,112390.0,0.33089047]
[1760183535777,0.31802574,112400.0,112390.0,0.1529387]
[1760183535981,0.49596168,112400.0,112390.0,0.1529387]
[1760183537407,0.49596168,112400.0,112390.0,0.33089047]
[1760183537607,0.31802574,112400.0,112390.0,0.33089047]
[1760183538017,0.29302574,112400.0,112390.0,0.33089047]
[1760183538244,0.16802574,112400.0,112390.0,0.33089047]
[1760183541093,0.16802574,112400.0,112390.0,0.73089047]
[1760183547984,0.16802574,112400.0,112390.0,0.82041999]
[1760183548406,0.16802574,112400.0,112390.0,0.90020872]
[1760183553646,0.16748874,112400.0,112390.0,0.90020872]
[1760183560384,0.16748874,112400.0,112390.0,0.82041999]
[1760183561380,0.16748874,112400.0,112390.0,0.81941999]
[1760183561776,0.16748874,112400.0,112390.0,0.82041999]
[1760183562280,0.16748874,112400.0,112390.0,0.90020872]
[1760183562686,0.16748874,112400.0,112390.0,0.82041999]
[1760183563323,0.16748874,112400.0,112390.0,1.34020871]
[1760183563524,0.14722966,112400.0,112390.0,1.3652087]
[1760183563854,0.12051472,112400.0,112390.0,1.31217177]
[1760183564092,0.08961498,112400.0,112390.0,1.44519473]
[1760183564345,0.06290004,112400.0,112390.0,1.44519473]
[1760183564550,0.03368418,112400.0,112390.0,1.44717342]
[1760183564750,0.00696924,112400.0,112390.0,1.36751317]
[1760183564953,0.00095199,112420.0,112410.0,0.5429201]
[1760183565152,0.00095199,112420.0,112410.0,0.64434962]
[1760183565153,0.00100242,112420.0,112410.0,0.64434962]
[1760183565354,0.00100242,112420.0,112410.0,0.66049962]
[1760183565480,0.00100242,112420.0,112410.0,0.68444962]
[1760183565686,0.00100242,112420.0,112410.0,1.1111968]
[1760183566131,0.00100242,112420.0,112410.0,1.21119129]
[1760183566562,0.00100242,112420.0,112410.0,1.21219129]
[1760183567306,0.00100242,112420.0,112410.0,1.21419129]
[1760183570326,0.00100242,112420.0,112410.0,1.28222684]
[1760183572172,0.00100242,112420.0,112410.0,1.23047967]
[1760183577421,0.00100242,112420.0,112410.0,1.22847967]
[1760183577828,0.00100242,112420.0,112410.0,1.22947967]
[1760183578190,0.00100242,112420.0,112410.0,1.0719146]
[1760183578446,0.00100242,112420.0,112410.0,1.0709146]
[1760183578847,0.00100242,112420.0,112410.0,1.0719146]
[1760183579027,0.00100242,112420.0,112410.0,1.0709146]
[1760183579433,0.00100242,112420.0,112410.0,1.0719146]
[1760183579637,0.00100242,112420.0,112410.0,1.0709146]
[1760183579838,0.00100242,112420.0,112410.0,1.0699146]
[1760183580071,0.00100242,112420.0,112410.0,1.0719146]
[1760183580589,0.00100242,112420.0,112410.0,1.0709146]
[1760183581004,0.00100242,112420.0,112410.0,1.0719146]
[1760183582830,0.00100242,112420.0,112410.0,1.16144412]
[1760183583292,0.00100242,112420.0,112410.0,1.24110857]
[1760183583528,0.00100242,112420.0,112410.0,1.16144412]
[1760183584382,0.00100242,112420.0,112410.0,1.24110857]
[1760183584588,0.00100242,112420.0,112410.0,1.15157905]
[1760183584807,0.00100242,112420.0,112410.0,1.0719146]
[1760183591711,0.00100242,112420.0,112410.0,0.3319146]
[1760183595856,0.00100242,112420.0,112410.0,1.3319146]
[1760183602183,0.00100242,112420.0,112410.0,1.42144412]
[1760183602386,0.00100242,112420.0,112410.0,1.50110857]
[1760183602555,0.00100242,112420.0,112410.0,1.90110857]
[1760183602973,0.00100242,112420.0,112410.0,1.90010857]
[1760183603409,0.00100242,112420.0,112410.0,1.90210857]
[1760183603915,0.00100242,112420.0,112410.0,1.90110857]
[1760183604256,0.00100242,112420.0,112410.0,1.90210857]
[1760183613902,0.00100242,112420.0,112410.0,1.82144412]
[1760183614106,0.00100242,112420.0,112410.0,1.81944412]
[1760183614302,0.00100242,112420.0,112410.0,1.82044412]
[1760183614532,0.00100242,112420.0,112410.0,1.82144412]
[1760183614758,0.00100242,112420.0,112410.0,1.82044412]
[1760183614961,0.00100242,112420.0,112410.0,1.82144412]
[1760183618702,0.00100242,112420.0,112410.0,1.90110857]
[1760183623495,0.00100242,112420.0,112410.0,1.82144412]
[1760183623634,0.00100242,112420.0,112410.0,1.42144412]
[1760183624240,0.00100242,112420.0,112410.0,1.3319146]
[1760183625131,0.00100242,112420.0,112410.0,1.3309146]
[1760183625332,0.00100242,112420.0,112410.0,1.3299146]
[1760183625746,0.00100242,112420.0,112410.0,1.3309146]
[1760183626696,0.00100242,112420.0,112410.0,1.3319146]
[1760183635782,0.00100242,112420.0,112410.0,1.41157905]
[1760183636398,0.00100242,112420.0,112410.0,1.41057905]
[1760183636599,0.00100242,112420.0,112410.0,1.41157905]
[1760183636840,0.00100242,112420.0,112410.0,1.3319146]
[1760183637035,0.00100242,112420.0,112410.0,1.2923146]
[1760183637255,0.00100242,112420.0,112410.0,1.7064346]
[1760183637755,0.00100242,112420.0,112410.0,1.7084346]
[1760183638170,0.00100242,112420.0,112410.0,1.3054346]
[1760183638340,0.00100242,112420.0,112410.0,1.3064346]
[1760183638540,0.00100242,112420.0,112410.0,1.3074346]
[1760183638997,0.00100242,112420.0,112410.0,1.3064346]
[1760183639637,0.00100242,112420.0,112410.0,1.3054346]
[1760183640043,0.00100242,112420.0,112410.0,1.3064346]
[1760183640443,0.00100242,112420.0,112410.0,1.3074346]
[1760183641150,0.22825241,112440.0,112420.0,0.17790428]
[1760183641329,0.19419076,112430.0,112420.0,0.18916428]
[1760183641532,0.19419076,112430.0,112420.0,0.20428428]
[1760183641533,0.20644076,112430.0,112420.0,0.20428428]
[1760183641809,0.23027076,112430.0,112420.0,0.30427877]
[1760183642013,0.23027076,112430.0,112420.0,0.09999449]
[1760183642174,0.60042266,112430.0,112420.0,0.09999449]
[1760183642735,0.17790428,112420.0,112410.0,1.18359974]
[1760183642938,0.23028428,112420.0,112410.0,1.18359974]
[1760183643260,0.23028428,112420.0,112410.0,1.00568]
[1760183643490,0.23028428,112420.0,112410.0,1.12079449]
[1760183643907,0.23028428,112420.0,112410.0,1.10567449]
[1760183644661,0.23028428,112420.0,112410.0,1.10667449]
[1760183645061,0.25704126,112420.0,112410.0,1.10667449]
[1760183645618,0.25704126,112420.0,112410.0,1.12179449]
[1760183645820,0.25704126,112420.0,112410.0,1.2997146]
[1760183646751,0.23321126,112420.0,112410.0,1.2997146]
[1760183646996,0.23321126,112420.0,112410.0,1.30066661]
[1760183647653,0.25704126,112420.0,112410.0,1.1227465]
[1760183650093,0.25704126,112420.0,112410.0,1.1076265]
[1760183650647,0.25704126,112420.0,112410.0,1.30066661]
[1760183650996,0.25704126,112420.0,112410.0,1.1076265]
[1760183651177,0.25704126,112420.0,112410.0,1.1227465]
[1760183652019,0.25704126,112420.0,112410.0,1.1019465]
[1760183652628,0.25704126,112420.0,112410.0,1.00195201]
[1760183653370,0.25704126,112420.0,112410.0,1.00095201]
[1760183660654,0.25704126,112420.0,112410.0,1.17887212]
[1760183664271,0.25704126,112420.0,112410.0,1.19399212]
[1760183665296,0.25704126,112420.0,112410.0,1.17887212]
[1760183665709,0.25704126,112420.0,112410.0,1.00095201]
[1760183669489,0.23321126,112420.0,112410.0,1.20000212]
[1760183669702,0.25757126,112420.0,112410.0,1.20000212]
[1760183670340,0.02675698,112420.0,112410.0,1.22260212]
[1760183670545,0.3405775,112430.0,112420.0,0.17790428]
[1760183670546,0.0005775,112430.0,112420.0,0.17790428]
[1760183670768,0.0005775,112430.0,112420.0,0.22703428]
[1760183671207,0.0005775,112430.0,112420.0,0.32702877]
[1760183672095,0.0005775,112430.0,112420.0,0.32802877]
[1760183679074,0.0005775,112430.0,112420.0,0.41755829]
[1760183679279,0.0005775,112430.0,112420.0,0.75755829]
[1760183679474,0.0005775,112430.0,112420.0,0.80930302]
[1760183679679,0.0005775,112430.0,112420.0,1.28896747]
[1760183680088,0.0005775,112430.0,112420.0,1.28796747]
[1760183680603,0.0005775,112430.0,112420.0,1.28896747]
[1760183681674,0.0005775,112430.0,112420.0,1.28996747]
[1760183681887,0.0005775,112430.0,112420.0,1.28896747]
[1760183682097,0.0005775,112430.0,112420.0,1.29096747]
[1760183682312,0.0005775,112430.0,112420.0,1.35621249]
[1760183682527,0.0005775,112430.0,112420.0,1.27654804]
[1760183697235,0.0005775,112430.0,112420.0,1.2498033]
[1760183699836,0.0005775,112430.0,112420.0,1.32946775]
[1760183700425,5.043e-05,112440.0,112430.0,0.51788846]
[1760183700669,5.043e-05,112440.0,112430.0,0.66741797]
[1760183700852,5.043e-05,112440.0,112430.0,0.68398797]
[1760183701060,0.00062787,112440.0,112430.0,1.08398797]
[1760183701262,0.00062787,112440.0,112430.0,1.18398246]
[1760183701466,0.00062787,112440.0,112430.0,1.26364691]
[1760183701604,0.00062787,112440.0,112430.0,1.26664691]
[1760183703281,0.00062787,112440.0,112430.0,1.18698246]
[1760183708463,0.00062787,112440.0,112430.0,1.26664691]
[1760183713440,0.00062787,112440.0,112430.0,1.18698246]
[1760183714007,0.00062787,112440.0,112430.0,1.16198247]
[1760183716337,0.00062787,112440.0,112430.0,1.24164692]
[1760183718225,0.00062787,112440.0,112430.0,0.90164692]
[1760183718374,0.00062787,112440.0,112430.0,0.73245295]
[1760183718578,0.00062787,112440.0,112430.0,0.30805295]
[1760183718579,0.02858787,112440.0,112430.0,0.30805295]
[1760183718780,0.05161787,112440.0,112430.0,0.30805295]
[1760183718976,0.05161787,112440.0,112430.0,0.20805846]
[1760183719180,0.05161787,112440.0,112430.0,0.18948846]
[1760183719383,0.05161787,112440.0,112430.0,0.28948295]
[1760183719645,0.02858787,112440.0,112430.0,0.30705295]
[1760183719849,0.05161787,112440.0,112430.0,0.30705295]
[1760183720397,0.05161787,112440.0,112430.0,0.30605295]
[1760183720862,0.05161787,112440.0,112430.0,0.30505295]
[1760183721239,0.05161787,112440.0,112430.0,0.30605295]
[1760183722126,0.02858787,112440.0,112430.0,0.30605295]
[1760183722311,0.00062787,112440.0,112430.0,0.33045295]
[1760183722534,0.01698787,112440.0,112430.0,0.30605295]
[1760183724192,0.00062787,112440.0,112430.0,0.33045295]
[1760183724376,0.01698787,112440.0,112430.0,0.30605295]
[1760183725692,0.02858787,112440.0,112430.0,0.30605295]
[1760183726563,0.05352787,112440.0,112430.0,0.30605295]
[1760183726785,0.05352787,112440.0,112430.0,0.28948295]
[1760183727013,0.02858787,112440.0,112430.0,0.30536295]
[1760183727259,0.02735787,112440.0,112430.0,0.30536295]
[1760183729132,0.05229787,112440.0,112430.0,0.30536295]
[1760183729658,0.02735787,112440.0,112430.0,0.30536295]
[1760183730766,0.05229787,112440.0,112430.0,0.30536295]
[1760183731043,0.02735787,112440.0,112430.0,0.30536295]
[1760183731425,0.05229787,112440.0,112430.0,0.30536295]
[1760183732006,0.02735787,112440.0,112430.0,0.30536295]
[1760183733099,0.01222787,112440.0,112430.0,0.30536295]
[1760183733305,0.05300787,112440.0,112430.0,0.28948295]
[1760183733516,0.0301519,112450.0,112430.0,0.29476295]
[1760183733668,0.20801253,112450.0,112430.0,0.30616295]
[1760183734104,0.20801253,112450.0,112430.0,0.33065295]
[1760183734327,0.20801253,112450.0,112430.0,0.32965295]
[1760183735443,0.20801253,112450.0,112440.0,0.17787264]
[1760183738670,0.20801253,112450.0,112430.0,0.21377846]
[1760183739382,0.20801253,112450.0,112430.0,0.30516295]
[1760183739580,0.20801253,112450.0,112430.0,0.32965295]
[1760183740948,0.20801253,112450.0,112440.0,0.17787264]
[1760183741150,0.2085899,112450.0,112440.0,0.17787264]
[1760183745206,0.2085899,112450.0,112440.0,0.19414264]
[1760183745581,0.2085899,112450.0,112440.0,0.20602264]
[1760183745788,0.03072927,112450.0,112440.0,0.23006264]
[1760183746214,0.20858609,112450.0,112440.0,0.23006264]
[1760183746843,0.20858609,112450.0,112440.0,0.20602264]
[1760183750940,0.24927845,112450.0,112430.0,0.21428022]
[1760183751093,0.24927845,112450.0,112440.0,0.01627]
[1760183751663,0.20858609,112450.0,112440.0,0.19414264]
[1760183752162,0.20858609,112450.0,112440.0,0.23006264]
[1760183752848,0.17785682,112450.0,112440.0,0.23006264]
[1760183753125,0.17785682,112450.0,112440.0,0.20602264]
[1760183755545,0.17785682,112450.0,112440.0,0.23006264]
[1760183755751,0.17785682,112450.0,112440.0,0.20602264]
[1760183756670,0.17785682,112450.0,112440.0,0.02815]
[1760183757656,0.20460757,112450.0,112440.0,0.02815]
[1760183757981,0.20460757,112450.0,112440.0,0.20602264]
[1760183758384,0.20460757,112450.0,112430.0,0.21426902]
[1760183758571,0.20460757,112450.0,112440.0,0.17787264]
[1760183759664,0.20560757,112450.0,112440.0,0.17787264]
[1760183760285,0.24347701,112450.0,112430.0,0.19022902]
[1760183760487,0.24347701,112450.0,112430.0,0.20632902]
[1760183761000,0.20560757,112450.0,112430.0,0.20632902]
[1760183761165,0.20560757,112450.0,112440.0,0.17787264]
[1760183761598,0.02775075,112450.0,112440.0,0.17787264]
[1760183761825,0.20560757,112450.0,112440.0,0.19397264]
[1760183762026,0.20460757,112450.0,112440.0,0.19397264]
[1760183762235,0.20560757,112450.0,112440.0,0.19397264]
[1760183762658,0.20460757,112450.0,112440.0,0.19397264]
[1760183762861,0.20560757,112450.0,112440.0,0.19397264]
[1760183763510,0.20560757,112450.0,112440.0,0.20590264]
[1760183765497,0.21672626,112450.0,112430.0,0.17882902]
[1760183765720,0.21672626,112450.0,112440.0,0.17787264]
[1760183765920,0.17885682,112450.0,112440.0,0.17787264]
[1760183766145,0.17885682,112450.0,112430.0,0.21429902]
[1760183766323,0.17885682,112450.0,112430.0,0.20685902]
[1760183766550,0.17885682,112450.0,112430.0,0.20687022]
[1760183766957,0.02775242,112450.0,112440.0,0.18980264]
[1760183767167,0.02775242,112450.0,112440.0,0.21334264]
[1760183767402,0.17885682,112450.0,112440.0,0.22944264]
[1760183767812,0.001,112450.0,112440.0,0.22944264]
[1760183768149,0.19983779,112460.0,112440.0,0.22944264]
[1760183768582,0.001,112450.0,112440.0,0.22944264]
[1760183768796,0.19983779,112460.0,112440.0,0.22944264]
[1760183770214,0.57098969,112460.0,112450.0,0.01193]
[1760183770583,0.57098969,112460.0,112440.0,0.22944264]
[1760183770899,0.17785682,112450.0,112440.0,0.22944264]
[1760183772570,0.56998969,112460.0,112440.0,0.22944264]
[1760183773201,0.58635049,112460.0,112450.0,0.18978682]
[1760183773400,0.58635049,112460.0,112450.0,0.22942682]
[1760183773613,0.58634385,112460.0,112450.0,0.22942682]
[1760183774031,0.40850284,112460.0,112450.0,0.22942682]
[1760183774236,0.37835094,112460.0,112450.0,0.22942682]
[1760183774849,0.37935094,112460.0,112450.0,0.22942682]
[1760183775249,0.37835094,112460.0,112450.0,0.22942682]
[1760183776023,0.34057729,112460.0,112450.0,0.22942682]
[1760183776632,0.34057729,112460.0,112450.0,0.32942131]
[1760183778007,0.00057729,112460.0,112450.0,0.32942131]
[1760183778131,0.00057729,112460.0,112450.0,0.33042131]
[1760183778838,0.00057729,112460.0,112450.0,0.32942131]
[1760183779066,0.00057729,112460.0,112450.0,0.33042131]
[1760183780689,0.00057729,112460.0,112450.0,0.35716324]
[1760183780940,0.00057729,112460.0,112450.0,0.75716324]
[1760183783001,0.07162362,112490.0,112480.0,0.17780938]
[1760183783202,0.07177496,112490.0,112480.0,0.20583938]
[1760183783444,0.07177496,112490.0,112480.0,0.22937938]
[1760183783640,0.02689327,112490.0,112480.0,0.22937938]
[1760183784397,0.00015134,112490.0,112480.0,0.22937938]
[1760183784534,0.00115134,112490.0,112480.0,0.22937938]
[1760183784737,0.03130324,112490.0,112480.0,0.22937938]
[1760183785159,0.20909682,112490.0,112480.0,0.22937938]
[1760183785756,0.20909682,112490.0,112480.0,0.02803]
[1760183785942,0.20909682,112490.0,112470.0,0.18974175]
[1760183786149,0.20909682,112490.0,112470.0,0.22938175]
[1760183787326,0.20809682,112490.0,112470.0,0.22938175]
[1760183787739,0.20909682,112490.0,112470.0,0.22938175]
[1760183788145,0.20909682,112490.0,112480.0,0.17780938]
[1760183788346,0.20909682,112490.0,112480.0,0.20563938]
[1760183788551,0.20909682,112490.0,112480.0,0.22928938]
[1760183788877,0.21082816,112490.0,112480.0,0.22928938]
[1760183789019,0.20982816,112490.0,112480.0,0.22928938]
[1760183789215,0.03303458,112490.0,112480.0,0.22928938]
[1760183789463,0.21082816,112490.0,112480.0,0.22928938]
[1760183790396,0.03303458,112490.0,112480.0,0.22928938]
[1760183790600,0.21082816,112490.0,112480.0,0.22928938]
[1760183791015,0.00288268,112490.0,112480.0,0.22928938]
[1760183791418,0.00288268,112490.0,112480.0,0.32928387]
[1760183792240,0.00188268,112490.0,112480.0,0.32928387]
[1760183793777,0.00188268,112490.0,112480.0,0.33028387]
[1760183795063,0.00188268,112490.0,112480.0,0.73028387]
[1760183795755,0.00188268,112490.0,112480.0,1.15981339]
[1760183795974,0.00188268,112490.0,112480.0,1.18654612]
[1760183796833,0.00188268,112490.0,112480.0,1.25343814]
[1760183800024,0.62490102,112530.0,112510.0,0.17776197]
[1760183800263,0.62540528,112530.0,112510.0,0.17776197]
[1760183800469,0.62540528,112530.0,112520.0,0.01577]
[1760183800880,0.36954431,112530.0,112520.0,0.22920617]
[1760183801075,0.54727469,112530.0,112520.0,0.22920617]
[1760183801277,0.37154431,112530.0,112520.0,0.22920617]
[1760183801434,0.37054431,112530.0,112520.0,0.22920617]
[1760183801654,0.36954431,112530.0,112520.0,0.22920617]
[1760183801895,0.37054431,112530.0,112520.0,0.22920617]
[1760183802320,0.54827469,112530.0,112520.0,0.22920617]
[1760183802483,0.54727469,112530.0,112520.0,0.22920617]
[1760183802652,0.54727469,112530.0,112520.0,0.20561617]
[1760183803286,0.36954431,112530.0,112520.0,0.22920617]
[1760183803487,0.54727469,112530.0,112520.0,0.22920617]
[1760183803713,0.52054196,112530.0,112520.0,0.20561617]
[1760183804568,0.52054196,112530.0,112520.0,0.22920617]
[1760183804945,0.52054196,112530.0,112520.0,0.20561617]
[1760183805274,0.52054196,112530.0,112520.0,0.22920617]
[1760183806057,0.52883703,112530.0,112520.0,0.02787]
[1760183806259,0.52883702,112530.0,112520.0,0.02787]
[1760183807014,0.52883702,112530.0,112510.0,0.21341197]
[1760183807208,0.5265297,112530.0,112520.0,0.01522]
[1760183807411,0.20789807,112520.0,112500.0,0.1898374]
[1760183807651,0.17776197,112510.0,112490.0,0.21341834]
[1760183807860,0.17777777,112500.0,112490.0,0.18985358]
[1760183808062,0.17777777,112500.0,112490.0,0.11205449]
[1760183808282,0.17777777,112500.0,112490.0,0.18985358]
[1760183808628,0.17777777,112500.0,112490.0,0.20507358]
[1760183808824,0.20450028,112510.0,112490.0,0.20507358]
[1760183809064,0.2128015,112510.0,112490.0,0.20507358]
[1760183809487,0.17777777,112500.0,112490.0,0.20507358]
[1760183809669,0.17777777,112500.0,112490.0,0.02728]
[1760183809850,0.17777777,112500.0,112490.0,0.20507358]
[1760183811251,0.17777777,112500.0,112490.0,0.02728]
[1760183811975,0.17777777,112500.0,112490.0,0.20507358]
[1760183812975,0.17777777,112500.0,112490.0,0.02728]
[1760183813179,0.17835475,112500.0,112480.0,0.21445059]
[1760183813311,0.17835475,112500.0,112480.0,0.20608059]
[1760183813516,0.17835475,112500.0,112480.0,0.22967059]
[1760183813839,0.17835475,112500.0,112480.0,0.30607508]
[1760183815114,0.17779358,112490.0,112480.0,0.30607508]
[1760183816014,0.17835475,112500.0,112480.0,0.32966508]
[1760183816154,0.17779358,112490.0,112480.0,0.32966508]
[1760183816345,0.17779358,112490.0,112480.0,0.30707508]
[1760183816540,0.17835475,112500.0,112480.0,0.30707508]
[1760183817836,0.17835475,112500.0,112480.0,0.30607508]
[1760183817979,0.17779358,112490.0,112480.0,0.1009457]
[1760183818162,0.17779358,112490.0,112480.0,0.00095121]
[1760183819028,0.17779358,112490.0,112480.0,0.00195121]
[1760183819749,0.17779358,112490.0,112480.0,0.00095121]
[1760183822096,0.20794548,112490.0,112480.0,0.00095121]
[1760183823121,0.24924964,112490.0,112480.0,0.00095121]
[1760183823361,0.20794548,112490.0,112480.0,0.00095121]
[1760183824601,0.20894548,112490.0,112480.0,0.00095121]
[1760183833171,0.17879358,112490.0,112480.0,0.00095121]
[1760183834512,0.20894548,112490.0,112480.0,0.00095121]
[1760183836682,0.17879358,112490.0,112480.0,0.00095121]
[1760183837454,0.20894548,112490.0,112480.0,0.00095121]
[1760183838922,0.20894548,112490.0,112480.0,0.01636121]
[1760183839125,0.20894548,112490.0,112480.0,0.00095121]
[1760183839541,0.001,112490.0,112480.0,0.22933938]
[1760183840367,0.001,112490.0,112480.0,0.32933387]
[1760183840775,0.00057698,112500.0,112490.0,0.17779358]
[1760183840907,0.00057698,112500.0,112490.0,0.18908358]
[1760183841122,0.00057698,112500.0,112490.0,0.22932358]
[1760183841334,0.00057698,112500.0,112490.0,0.20449358]
[1760183841535,0.00057698,112500.0,112490.0,0.32931807]
[1760183841963,0.17835475,112500.0,112490.0,0.30448807]
[1760183842973,0.00057698,112500.0,112490.0,0.32931807]
[1760183843511,0.00057698,112500.0,112490.0,0.33031807]
[1760183846667,0.17835475,112500.0,112490.0,0.33031807]
[1760183846867,0.00057698,112500.0,112490.0,0.33031807]
[1760183850925,0.00057698,112500.0,112490.0,0.35705371]
[1760183856054,0.00057698,112500.0,112490.0,0.33031807]
[1760183857086,0.00057698,112500.0,112490.0,0.35705371]
[1760183860633,0.17835475,112500.0,112490.0,0.15443013]
[1760183860837,0.17835475,112500.0,112490.0,0.30548807]
[1760183861161,0.21396661,112500.0,112490.0,0.12769449]
[1760183861276,0.21396661,112500.0,112490.0,0.10099449]
[1760183861480,0.58411851,112500.0,112490.0,0.001]
[1760183862329,0.17780547,112490.0,112470.0,0.18997501]
[1760183862559,0.20795737,112490.0,112480.0,0.05189]
[1760183863512,0.20795737,112490.0,112480.0,0.0274]
[1760183864920,0.20795737,112490.0,112480.0,0.20520938]
[1760183865094,0.20795737,112490.0,112480.0,0.22969938]
[1760183865702,0.17780547,112490.0,112480.0,0.20520938]
[1760183865990,0.17780547,112490.0,112480.0,0.05189]
[1760183866572,0.17780547,112490.0,112480.0,0.0274]
[1760183869809,0.17780547,112490.0,112480.0,0.01215]
[1760183870121,0.17780547,112490.0,112480.0,0.0274]
[1760183870831,0.17780938,112480.0,112470.0,0.21461635]
[1760183871022,0.17780938,112480.0,112470.0,0.32986084]
[1760183871285,0.17780547,112490.0,112470.0,0.32986084]
[1760183871920,0.17780547,112490.0,112470.0,0.33086084]
[1760183872463,0.17780547,112490.0,112470.0,0.32986084]
[1760183876374,0.52262817,112500.0,112470.0,0.32986084]
[1760183876551,0.17875664,112490.0,112470.0,0.33043802]
[1760183876752,0.17875664,112490.0,112470.0,0.30594802]
[1760183877254,0.17875664,112490.0,112470.0,0.27854802]
[1760183877371,0.17875664,112490.0,112470.0,0.30624802]
[1760183877773,0.17875664,112490.0,112470.0,0.33019802]
[1760183880646,0.17875664,112490.0,112480.0,0.17780938]
[1760183880820,0.17875664,112490.0,112480.0,0.20550938]
[1760183881676,0.17875664,112490.0,112480.0,0.22945938]
[1760183882478,0.17875664,112490.0,112480.0,0.20550938]
[1760183883314,0.17875664,112490.0,112480.0,0.0277]
[1760183884790,0.17875664,112490.0,112480.0,0.20550938]
[1760183885358,0.00095117,112490.0,112480.0,0.22945938]
[1760183886454,0.00095117,112490.0,112480.0,0.32945387]
[1760183887494,0.21680938,112510.0,112480.0,0.32945387]
[1760183887495,0.16776055,112510.0,112490.0,0.17778713]
[1760183887704,0.50776055,112510.0,112500.0,0.01557]
[1760183890082,0.18663479,112520.0,112500.0,0.20547777]
[1760183890301,0.5266392,112520.0,112510.0,0.01213]
[1760183891492,0.52714346,112520.0,112510.0,0.18989197]
[1760183891704,0.5288741,112520.0,112510.0,0.20546197]
[1760183891923,0.5298741,112520.0,112510.0,0.20546197]
[1760183892356,0.52098107,112520.0,112510.0,0.20546197]
[1760183892580,0.52098107,112520.0,112510.0,0.30545646]
[1760183893193,0.3422349,112520.0,112510.0,0.20546197]
[1760183893610,0.3422349,112520.0,112510.0,0.22941197]
[1760183893901,0.0022349,112520.0,112510.0,0.22941197]
[1760183894318,0.0022349,112520.0,112510.0,0.33040646]
[1760183895798,0.0022349,112520.0,112510.0,0.30645646]
[1760183896353,0.0022349,112520.0,112510.0,0.33040646]
[1760183896936,0.0022349,112520.0,112510.0,0.30645646]
[1760183897310,0.17998107,112520.0,112510.0,0.30645646]
[1760183897851,0.17998107,112520.0,112510.0,0.33040646]
[1760183897852,0.0022349,112520.0,112510.0,0.33040646]
[1760183898305,0.0022349,112520.0,112510.0,0.30645646]
[1760183898505,0.17998107,112520.0,112510.0,0.10099449]
[1760183898706,0.17998107,112520.0,112510.0,0.001]
[1760183899836,0.17998107,112520.0,112510.0,0.17876197]
[1760183900040,0.17998107,112520.0,112510.0,0.001]
[1760183900217,0.17998107,112520.0,112500.0,0.17777777]
[1760183900406,0.17776197,112510.0,112500.0,0.17777777]
[1760183900604,0.17776197,112510.0,112490.0,0.18991713]
[1760183900824,0.17776197,112510.0,112500.0,0.17777777]
[1760183903532,0.17776197,112510.0,112490.0,0.18991713]
[1760183903733,0.17776197,112510.0,112500.0,0.17777777]
[1760183904369,0.18713773,112520.0,112500.0,0.17777777]
[1760183904577,0.17776197,112510.0,112500.0,0.17777777]
[1760183904966,0.17776197,112510.0,112490.0,0.21386713]
[1760183905227,0.17776197,112510.0,112500.0,0.17777777]
[1760183905422,0.17776197,112510.0,112500.0,0.20547777]
[1760183905568,0.00115386,112510.0,112500.0,0.18990777]
[1760183905773,0.00115386,112510.0,112500.0,0.17777777]
[1760183906195,0.17891583,112510.0,112500.0,0.17777777]
[1760183909600,0.17891583,112510.0,112490.0,0.18991713]
[1760183909814,0.17776197,112510.0,112490.0,0.21385713]
[1760183910020,0.17776197,112510.0,112490.0,0.20535358]
[1760183910021,0.17777777,112500.0,112490.0,0.20535358]
[1760183910229,0.17776197,112510.0,112490.0,0.17779358]
[1760183910402,0.17776197,112510.0,112490.0,0.19322358]
[1760183910751,0.17776197,112510.0,112490.0,0.20561358]
[1760183911179,0.17776197,112510.0,112490.0,0.22955358]
[1760183911784,0.17876197,112510.0,112490.0,0.22955358]
[1760183914432,0.17876197,112510.0,112490.0,0.20561358]
[1760183914979,0.00057698,112500.0,112490.0,0.22955358]
[1760183916734,0.00057698,112500.0,112490.0,0.20561358]
[1760183916940,0.17835475,112500.0,112490.0,0.20561358]
[1760183917273,0.00057698,112500.0,112490.0,0.20561358]
[1760183917484,0.00057698,112500.0,112490.0,0.22955358]
[1760183919458,0.00057698,112500.0,112490.0,0.32954807]
[1760183920454,0.00057698,112500.0,112490.0,0.33054807]
[1760183925478,0.17835475,112500.0,112490.0,0.10099449]
[1760183925606,0.17835475,112500.0,112490.0,0.001]
[1760183926452,0.17835475,112500.0,112480.0,0.1908906]
[1760183926635,0.17835475,112500.0,112490.0,0.17779358]
[1760183927283,0.00057698,112500.0,112490.0,0.20636358]
[1760183927568,0.17835475,112500.0,112490.0,0.20636358]
[1760183930980,0.17835475,112500.0,112490.0,0.22979358]
[1760183934007,0.00057698,112500.0,112490.0,0.22979358]
[1760183934340,0.17835475,112500.0,112490.0,0.22979358]
[1760183935091,0.00057698,112500.0,112490.0,0.22979358]
[1760183935299,0.00057698,112500.0,112490.0,0.32978807]
[1760183936307,0.17835475,112500.0,112490.0,0.30735807]
[1760183936585,0.00057698,112500.0,112490.0,0.33165807]
[1760183971049,0.00057698,112500.0,112490.0,0.38165807]
[1760183971248,0.00057698,112500.0,112490.0,0.38065807]
[1760183972586,0.00057698,112500.0,112490.0,0.38165807]
[1760183987918,0.17774889,112520.0,112510.0,0.17776197]
[1760183989032,0.17774889,112520.0,112510.0,0.19366197]
[1760183989231,0.91605486,112530.0,112510.0,0.22899197]
[1760183989453,0.21344447,112530.0,112510.0,0.22899197]